[Event "Early-Titled-Tuesday-Blitz-March-19-2024"]
[Site "Chess.com"]
[Date "2024.03.19"]
[Round "10"]
[White "wild3000"]
[Black "Kostya0705"]
[Result "1-0"]
[WhiteElo "2447"]
[BlackElo "2553"]
[TimeControl "180+1"]
[EndTime "9:55:47 PDT"]
[Termination "wild3000 won by resignation"]

1. d4 {[%clk 0:03:00.3]} 1... Nf6 {[%clk 0:02:59.6]} 2. Nf3 {[%clk 0:02:32.2]}
2... d5 {[%clk 0:02:59.7]} 3. g3 {[%clk 0:02:32.5]} 3... g6 {[%clk 0:02:55.2]}
4. Bg2 {[%clk 0:02:32.3]} 4... Bg7 {[%clk 0:02:56.1]} 5. O-O {[%clk 0:02:32.9]}
5... O-O {[%clk 0:02:57]} 6. b3 {[%clk 0:02:33.3]} 6... b6 {[%clk 0:02:57.9]} 7.
Bb2 {[%clk 0:02:33.5]} 7... Bb7 {[%clk 0:02:58.8]} 8. e3 {[%clk 0:02:33.8]} 8...
Nbd7 {[%clk 0:02:59.4]} 9. Nbd2 {[%clk 0:02:33.8]} 9... c5 {[%clk 0:03:00.3]}
10. c4 {[%clk 0:02:33.8]} 10... dxc4 {[%clk 0:02:59.3]} 11. Nxc4 {[%clk
0:02:33.7]} 11... Qc7 {[%clk 0:03:00.2]} 12. Rc1 {[%clk 0:02:33]} 12... Rfd8
{[%clk 0:02:57.7]} 13. Qe2 {[%clk 0:02:32.6]} 13... Ba6 {[%clk 0:02:41.7]} 14.
Rfd1 {[%clk 0:02:22.1]} 14... Rac8 {[%clk 0:02:41.2]} 15. Nfe5 {[%clk
0:02:08.8]} 15... Nxe5 {[%clk 0:02:39.9]} 16. dxe5 {[%clk 0:02:08.9]} 16... Ne8
{[%clk 0:02:37.6]} 17. f4 {[%clk 0:01:52.5]} 17... Bb7 {[%clk 0:02:29]} 18. a4
{[%clk 0:01:46.7]} 18... a6 {[%clk 0:02:26.2]} 19. Bxb7 {[%clk 0:01:42.7]} 19...
Qxb7 {[%clk 0:02:25.8]} 20. Qg2 {[%clk 0:01:43]} 20... Qa7 {[%clk 0:02:20.6]}
21. a5 {[%clk 0:01:37.2]} 21... bxa5 {[%clk 0:02:12.4]} 22. Nxa5 {[%clk
0:01:34.2]} 22... Qb6 {[%clk 0:02:10.9]} 23. Bc3 {[%clk 0:01:33.6]} 23... Nc7
{[%clk 0:02:06.2]} 24. Qc6 {[%clk 0:01:19]} 24... Qxc6 {[%clk 0:01:43.6]} 25.
Nxc6 {[%clk 0:01:19.9]} 25... Rxd1+ {[%clk 0:01:44]} 26. Rxd1 {[%clk 0:01:20]}
26... Kf8 {[%clk 0:01:44.9]} 27. Ba5 {[%clk 0:00:58.8]} 27... Nb5 {[%clk
0:01:40]} 28. Rd8+ {[%clk 0:00:53]} 28... Rxd8 {[%clk 0:01:39.4]} 29. Bxd8
{[%clk 0:00:53.9]} 29... Ke8 {[%clk 0:01:37.1]} 30. Bb6 {[%clk 0:00:46.2]} 30...
Kd7 {[%clk 0:01:35.8]} 31. Nb8+ {[%clk 0:00:33.7]} 31... Kc8 {[%clk 0:01:35.3]}
32. Nxa6 {[%clk 0:00:33.4]} 32... Kb7 {[%clk 0:01:34.9]} 33. Bxc5 {[%clk
0:00:32.9]} 33... Kxa6 {[%clk 0:01:34.8]} 34. Bxe7 {[%clk 0:00:33.5]} 34... Nc7
{[%clk 0:01:32.4]} 35. e4 {[%clk 0:00:30.8]} 35... Kb5 {[%clk 0:01:32.9]} 36.
Kf2 {[%clk 0:00:30.4]} 36... Ne6 {[%clk 0:01:29.4]} 37. Ke3 {[%clk 0:00:28.9]}
37... Bf8 {[%clk 0:01:29]} 38. Bxf8 {[%clk 0:00:27.3]} 38... Nxf8 {[%clk
0:01:29.9]} 39. Kd4 {[%clk 0:00:27.4]} 39... Kc6 {[%clk 0:01:25.7]} 40. Kc4
{[%clk 0:00:27.3]} 40... Nd7 {[%clk 0:01:24.4]} 41. b4 {[%clk 0:00:26.4]} 41...
Nb6+ {[%clk 0:01:23.3]} 42. Kd4 {[%clk 0:00:25.1]} 42... Kb5 {[%clk 0:01:24.2]}
43. e6 {[%clk 0:00:23.4]} 43... fxe6 {[%clk 0:01:21.5]} 44. Ke5 {[%clk
0:00:23.8]} 44... Kxb4 {[%clk 0:01:15.8]} 45. Kxe6 {[%clk 0:00:24]} 45... Kc4
{[%clk 0:01:14.9]} 46. Kf7 {[%clk 0:00:22.4]} 46... Kd4 {[%clk 0:01:14.8]} 47.
e5 {[%clk 0:00:22.8]} 47... g5 {[%clk 0:01:02.4]} 48. fxg5 {[%clk 0:00:20.2]}
48... Kxe5 {[%clk 0:01:02]} 49. Kg7 {[%clk 0:00:18.6]} 49... Kf5 {[%clk
0:01:02.3]} 50. h4 {[%clk 0:00:18.9]} 50... Nd5 {[%clk 0:00:53.8]} 51. Kxh7
{[%clk 0:00:18.9]} 51... Ne7 {[%clk 0:00:54.7]} 52. Kg7 {[%clk 0:00:18.2]} 52...
Nd5 {[%clk 0:00:49.8]} 53. Kh6 {[%clk 0:00:17.2]} 53... Ne7 {[%clk 0:00:49]} 54.
Kg7 {[%clk 0:00:17.4]} 54... Nd5 {[%clk 0:00:49.2]} 55. g6 {[%clk 0:00:17.7]}
55... Nf6 {[%clk 0:00:45.6]} 56. Kf7 {[%clk 0:00:13]} 56... Nd7 {[%clk
0:00:30.7]} 57. g7 {[%clk 0:00:12.5]} 57... Ne5+ {[%clk 0:00:31.1]} 58. Ke8
{[%clk 0:00:10.1]} 1-0

[Event "Early-Titled-Tuesday-Blitz-March-19-2024"]
[Site "Chess.com"]
[Date "2024.03.19"]
[Round "10"]
[White "GMKrikor"]
[Black "MightyMike_009"]
[Result "0-1"]
[WhiteElo "2871"]
[BlackElo "2731"]
[TimeControl "180+1"]
[EndTime "9:55:48 PDT"]
[Termination "MightyMike_009 won on time"]

1. Nf3 {[%clk 0:03:00.9]} 1... Nf6 {[%clk 0:02:59.6]} 2. c4 {[%clk 0:03:01.2]}
2... g6 {[%clk 0:02:58.6]} 3. Nc3 {[%clk 0:03:01.8]} 3... Bg7 {[%clk 0:02:59.4]}
4. e4 {[%clk 0:03:02.2]} 4... d6 {[%clk 0:02:59.6]} 5. d4 {[%clk 0:03:02.7]}
5... O-O {[%clk 0:02:59.8]} 6. h3 {[%clk 0:03:02.9]} 6... e5 {[%clk 0:02:59]} 7.
dxe5 {[%clk 0:03:03.8]} 7... dxe5 {[%clk 0:02:59]} 8. Qxd8 {[%clk 0:03:04.4]}
8... Rxd8 {[%clk 0:02:59.4]} 9. Bg5 {[%clk 0:03:04.3]} 9... c6 {[%clk
0:02:51.9]} 10. Nxe5 {[%clk 0:03:03.5]} 10... Re8 {[%clk 0:02:51.2]} 11. O-O-O
{[%clk 0:03:02.9]} 11... h6 {[%clk 0:02:51.3]} 12. Bf4 {[%clk 0:02:44.6]} 12...
Na6 {[%clk 0:02:42.8]} 13. Nf3 {[%clk 0:02:38.8]} 13... Nxe4 {[%clk 0:02:28.7]}
14. Nxe4 {[%clk 0:02:39.7]} 14... Rxe4 {[%clk 0:02:29.1]} 15. Rd8+ {[%clk
0:02:39.8]} 15... Kh7 {[%clk 0:02:29.4]} 16. Be3 {[%clk 0:02:40.5]} 16... Bf6
{[%clk 0:02:23.6]} 17. Rd2 {[%clk 0:02:40.3]} 17... Re8 {[%clk 0:02:06.1]} 18.
Bd3 {[%clk 0:02:33.2]} 18... Be6 {[%clk 0:02:00.2]} 19. b3 {[%clk 0:02:28.4]}
19... Nb4 {[%clk 0:01:45.1]} 20. Bb1 {[%clk 0:02:27.1]} 20... a5 {[%clk
0:01:44.2]} 21. Nd4 {[%clk 0:02:13.4]} 21... a4 {[%clk 0:01:38.5]} 22. Nxe6
{[%clk 0:02:00]} 22... axb3 {[%clk 0:00:56.5]} 23. axb3 {[%clk 0:01:17.9]} 23...
Rxe6 {[%clk 0:00:47.8]} 24. Rd7 {[%clk 0:01:17.9]} 24... Na2+ {[%clk 0:00:34]}
25. Kd2 {[%clk 0:00:54.5]} 25... Re7 {[%clk 0:00:33.5]} 26. Rxe7 {[%clk
0:00:46.9]} 26... Bxe7 {[%clk 0:00:34.4]} 27. h4 {[%clk 0:00:46]} 27... Bb4+
{[%clk 0:00:34.9]} 28. Kd3 {[%clk 0:00:45.2]} 28... Rd8+ {[%clk 0:00:35]} 29.
Kc2 {[%clk 0:00:39.1]} 29... Nc3 {[%clk 0:00:35.5]} 30. h5 {[%clk 0:00:38.3]}
30... Nxb1 {[%clk 0:00:33.2]} 31. hxg6+ {[%clk 0:00:37.7]} 31... Kxg6 {[%clk
0:00:30.6]} 32. Rxh6+ {[%clk 0:00:25.7]} 32... Kg7 {[%clk 0:00:30.8]} 33. Kxb1
{[%clk 0:00:24.2]} 33... Rd3 {[%clk 0:00:29.5]} 34. Rh4 {[%clk 0:00:22.4]} 34...
Rxb3+ {[%clk 0:00:29]} 35. Kc2 {[%clk 0:00:23.2]} 35... Ra3 {[%clk 0:00:27.3]}
36. c5 {[%clk 0:00:16.6]} 36... Ba5 {[%clk 0:00:22.9]} 37. Bd4+ {[%clk
0:00:05.6]} 37... Kg6 {[%clk 0:00:23.2]} 38. Rg4+ {[%clk 0:00:04.6]} 38... Kf5
{[%clk 0:00:23.4]} 39. Rg7 {[%clk 0:00:05.3]} 39... Ke6 {[%clk 0:00:23.8]} 40.
Be3 {[%clk 0:00:05.2]} 40... Bd8 {[%clk 0:00:23]} 41. Rh7 {[%clk 0:00:05.2]}
41... Be7 {[%clk 0:00:20.8]} 42. Rh6+ {[%clk 0:00:05.2]} 42... Kd5 {[%clk
0:00:20]} 43. Rh5+ {[%clk 0:00:05.6]} 43... Kc4 {[%clk 0:00:20.3]} 44. Kd2
{[%clk 0:00:03.4]} 44... Ra2+ {[%clk 0:00:19.5]} 45. Kc1 {[%clk 0:00:02.5]}
45... Bf6 {[%clk 0:00:18.7]} 46. Kb1 {[%clk 0:00:01.3]} 46... Kb3 {[%clk
0:00:17.8]} 47. Kc1 {[%clk 0:00:01.9]} 47... Bc3 {[%clk 0:00:17.1]} 48. Kd1
{[%clk 0:00:01.9]} 48... Kc4 {[%clk 0:00:17.7]} 49. Rh4+ {[%clk 0:00:01.6]}
49... Kd3 {[%clk 0:00:18.1]} 0-1

[Event "Early-Titled-Tuesday-Blitz-March-19-2024"]
[Site "Chess.com"]
[Date "2024.03.19"]
[Round "10"]
[White "jocmil"]
[Black "Likvidator228"]
[Result "1-0"]
[WhiteElo "2761"]
[BlackElo "2582"]
[TimeControl "180+1"]
[EndTime "9:55:49 PDT"]
[Termination "jocmil won by resignation"]

1. e4 {[%clk 0:03:00.9]} 1... c5 {[%clk 0:02:59.9]} 2. Nc3 {[%clk 0:03:00.3]}
2... g6 {[%clk 0:02:59.4]} 3. d4 {[%clk 0:02:59.5]} 3... cxd4 {[%clk 0:02:59.5]}
4. Qxd4 {[%clk 0:03:00.4]} 4... Nf6 {[%clk 0:02:59.1]} 5. e5 {[%clk 0:03:00.7]}
5... Nc6 {[%clk 0:02:59.3]} 6. Qf4 {[%clk 0:03:00.9]} 6... Nh5 {[%clk
0:02:57.1]} 7. Qe4 {[%clk 0:02:58.1]} 7... Bg7 {[%clk 0:02:52.9]} 8. g4 {[%clk
0:02:54.9]} 8... f5 {[%clk 0:02:53]} 9. gxf5 {[%clk 0:02:53.4]} 9... d5 {[%clk
0:02:43.5]} 10. Qxd5 {[%clk 0:02:52]} 10... Bxf5 {[%clk 0:02:41.5]} 11. Bg2
{[%clk 0:02:42.7]} 11... Qxd5 {[%clk 0:02:23]} 12. Nxd5 {[%clk 0:02:42.3]} 12...
O-O-O {[%clk 0:02:18.1]} 13. Be3 {[%clk 0:02:38.8]} 13... Bxe5 {[%clk
0:02:13.5]} 14. O-O-O {[%clk 0:02:19.8]} 14... e6 {[%clk 0:02:13.5]} 15. Nc3
{[%clk 0:02:19.3]} 15... Rxd1+ {[%clk 0:01:50.5]} 16. Kxd1 {[%clk 0:02:04.3]}
16... Rd8+ {[%clk 0:01:48.5]} 17. Kc1 {[%clk 0:02:02.5]} 17... Nf4 {[%clk
0:01:44.9]} 18. Bxc6 {[%clk 0:02:01.5]} 18... bxc6 {[%clk 0:01:43.5]} 19. Nf3
{[%clk 0:01:48.6]} 19... Bb8 {[%clk 0:01:43.2]} 20. Nd4 {[%clk 0:01:46.8]} 20...
Kb7 {[%clk 0:01:35.2]} 21. Nb3 {[%clk 0:01:37]} 21... Be5 {[%clk 0:01:21.2]} 22.
Na5+ {[%clk 0:01:29.3]} 22... Kc7 {[%clk 0:01:18]} 23. Nc4 {[%clk 0:01:29.8]}
23... Bxc3 {[%clk 0:01:15.4]} 24. Bxf4+ {[%clk 0:01:29.7]} 24... e5 {[%clk
0:01:08.2]} 25. Bxe5+ {[%clk 0:01:11.4]} 25... Bxe5 {[%clk 0:01:05.9]} 26. Nxe5
{[%clk 0:01:12.3]} 26... Rd4 {[%clk 0:00:54.6]} 27. f3 {[%clk 0:00:49.3]} 27...
Kd6 {[%clk 0:00:48.2]} 28. Re1 {[%clk 0:00:47.6]} 28... Rh4 {[%clk 0:00:44.3]}
29. Re2 {[%clk 0:00:45.1]} 29... Rh3 {[%clk 0:00:30.8]} 30. Kd2 {[%clk
0:00:43.6]} 30... Be6 {[%clk 0:00:28]} 31. c4 {[%clk 0:00:34]} 31... Rh5 {[%clk
0:00:25.9]} 32. c5+ {[%clk 0:00:27.2]} 32... Kxc5 {[%clk 0:00:16.7]} 33. Nd3+
{[%clk 0:00:27.2]} 33... Kd6 {[%clk 0:00:14.8]} 34. Rxe6+ {[%clk 0:00:27.2]}
34... Kxe6 {[%clk 0:00:15.2]} 35. Nf4+ {[%clk 0:00:27.6]} 35... Ke5 {[%clk
0:00:15.2]} 36. Nxh5 {[%clk 0:00:28.5]} 36... gxh5 {[%clk 0:00:15.3]} 37. Ke3
{[%clk 0:00:29.1]} 37... c5 {[%clk 0:00:14.1]} 38. f4+ {[%clk 0:00:29.2]} 38...
Kf5 {[%clk 0:00:14.3]} 39. Kf3 {[%clk 0:00:29.6]} 39... h4 {[%clk 0:00:10.8]}
40. h3 {[%clk 0:00:29.4]} 40... a5 {[%clk 0:00:09.2]} 41. b3 {[%clk 0:00:23.9]}
41... Ke6 {[%clk 0:00:06.7]} 42. Ke4 {[%clk 0:00:23.8]} 42... h6 {[%clk
0:00:03.9]} 43. f5+ {[%clk 0:00:23.4]} 43... Kf6 {[%clk 0:00:03.4]} 44. Kf4
{[%clk 0:00:23.8]} 44... Ke7 {[%clk 0:00:03.5]} 45. Ke5 {[%clk 0:00:24.3]} 45...
Kf7 {[%clk 0:00:03.9]} 46. f6 {[%clk 0:00:23.1]} 46... h5 {[%clk 0:00:03.8]} 47.
Kf5 {[%clk 0:00:22.8]} 47... a4 {[%clk 0:00:04.2]} 48. Kg5 {[%clk 0:00:22.2]}
48... c4 {[%clk 0:00:04.2]} 49. bxc4 {[%clk 0:00:22.1]} 49... a3 {[%clk
0:00:04.7]} 50. Kf5 {[%clk 0:00:21.8]} 50... Kf8 {[%clk 0:00:03]} 51. c5 {[%clk
0:00:22.7]} 51... Kf7 {[%clk 0:00:03.5]} 52. Ke5 {[%clk 0:00:23]} 52... Ke8
{[%clk 0:00:04.4]} 53. Ke6 {[%clk 0:00:23.9]} 53... Kd8 {[%clk 0:00:04.3]} 54.
f7 {[%clk 0:00:24.4]} 54... Kc7 {[%clk 0:00:04.7]} 55. f8=Q {[%clk 0:00:24.6]}
1-0

[Event "Early-Titled-Tuesday-Blitz-March-19-2024"]
[Site "Chess.com"]
[Date "2024.03.19"]
[Round "10"]
[White "IMRosen"]
[Black "valeriocarnicelli"]
[Result "1-0"]
[WhiteElo "2649"]
[BlackElo "2540"]
[TimeControl "180+1"]
[EndTime "9:55:49 PDT"]
[Termination "IMRosen won by resignation"]

1. e4 {[%clk 0:03:00.9]} 1... c5 {[%clk 0:03:00.3]} 2. b3 {[%clk 0:03:00.9]}
2... Nc6 {[%clk 0:02:59.7]} 3. Bb2 {[%clk 0:03:00.8]} 3... e6 {[%clk 0:02:58.8]}
4. Bb5 {[%clk 0:02:56.7]} 4... Qc7 {[%clk 0:02:57.1]} 5. Nf3 {[%clk 0:02:48.6]}
5... b6 {[%clk 0:02:56.8]} 6. O-O {[%clk 0:02:41.9]} 6... Bb7 {[%clk 0:02:57.1]}
7. Re1 {[%clk 0:02:42.7]} 7... d6 {[%clk 0:02:56.6]} 8. d4 {[%clk 0:02:40.7]}
8... a6 {[%clk 0:02:52.9]} 9. Bxc6+ {[%clk 0:02:39.1]} 9... Bxc6 {[%clk
0:02:53.2]} 10. d5 {[%clk 0:02:39.8]} 10... Bd7 {[%clk 0:02:50.1]} 11. e5 {[%clk
0:02:32.5]} 11... O-O-O {[%clk 0:02:45.7]} 12. Qe2 {[%clk 0:02:21.9]} 12... exd5
{[%clk 0:02:39.4]} 13. exd6 {[%clk 0:02:14.5]} 13... Qb7 {[%clk 0:02:33.9]} 14.
Be5 {[%clk 0:01:11.4]} 14... f6 {[%clk 0:02:24.4]} 15. Bg3 {[%clk 0:01:11.3]}
15... Nh6 {[%clk 0:02:20.3]} 16. Nc3 {[%clk 0:01:01.7]} 16... Nf5 {[%clk
0:02:20]} 17. Rad1 {[%clk 0:01:02.3]} 17... d4 {[%clk 0:02:09]} 18. Ne4 {[%clk
0:00:58.8]} 18... Nxg3 {[%clk 0:01:49.8]} 19. hxg3 {[%clk 0:00:53.3]} 19... Bc6
{[%clk 0:01:50]} 20. Nfd2 {[%clk 0:00:45.2]} 20... h6 {[%clk 0:01:39]} 21. Qg4+
{[%clk 0:00:39.4]} 21... Qd7 {[%clk 0:01:35.2]} 22. Qf4 {[%clk 0:00:33.4]} 22...
f5 {[%clk 0:01:27.7]} 23. Nc4 {[%clk 0:00:29.8]} 23... Kb7 {[%clk 0:01:13.8]}
24. Na5+ {[%clk 0:00:30.1]} 24... Ka8 {[%clk 0:00:57.1]} 25. Nxc6 {[%clk
0:00:30.3]} 25... Qxc6 {[%clk 0:00:57.9]} 26. Qxf5 {[%clk 0:00:31]} 26... Bxd6
{[%clk 0:00:54.3]} 27. Nxd6 {[%clk 0:00:30.3]} 27... Qxd6 {[%clk 0:00:42]} 28.
Re6 {[%clk 0:00:30.6]} 28... Qc7 {[%clk 0:00:39]} 29. Rde1 {[%clk 0:00:30.8]}
29... Rd7 {[%clk 0:00:38]} 30. Qg6 {[%clk 0:00:28.2]} 30... Ka7 {[%clk
0:00:35.8]} 31. Rc6 {[%clk 0:00:27.1]} 31... Qb7 {[%clk 0:00:36.1]} 32. Ree6
{[%clk 0:00:26.1]} 32... Rb8 {[%clk 0:00:34.6]} 33. a4 {[%clk 0:00:24.2]} 33...
a5 {[%clk 0:00:34.2]} 34. Qd3 {[%clk 0:00:19.8]} 34... Qa6 {[%clk 0:00:26]} 35.
Qxa6+ {[%clk 0:00:16.6]} 35... Kxa6 {[%clk 0:00:26.9]} 36. Rxc5 {[%clk
0:00:17.3]} 36... d3 {[%clk 0:00:27.6]} 37. cxd3 {[%clk 0:00:15.4]} 37... Rxd3
{[%clk 0:00:28.5]} 38. Rc7 {[%clk 0:00:15.6]} 38... Rb7 {[%clk 0:00:24.5]} 39.
Rxb7 {[%clk 0:00:10.2]} 39... Kxb7 {[%clk 0:00:25.4]} 40. Re3 {[%clk 0:00:10.6]}
40... Rd2 {[%clk 0:00:20.5]} 41. Re7+ {[%clk 0:00:08.2]} 41... Ka6 {[%clk
0:00:20.7]} 42. Rxg7 {[%clk 0:00:05.3]} 42... Rd3 {[%clk 0:00:19.9]} 43. f4
{[%clk 0:00:05.2]} 43... Rxb3 {[%clk 0:00:19.3]} 44. f5 {[%clk 0:00:05.9]} 44...
Rb1+ {[%clk 0:00:16.1]} 45. Kf2 {[%clk 0:00:05.8]} 45... Rc1 {[%clk 0:00:12]}
46. f6 {[%clk 0:00:04.1]} 46... Rc6 {[%clk 0:00:12]} 47. f7 {[%clk 0:00:03.5]}
47... Rf6+ {[%clk 0:00:11.7]} 48. Ke3 {[%clk 0:00:03.9]} 48... b5 {[%clk
0:00:12.1]} 49. Rg6 {[%clk 0:00:04.2]} 1-0

[Event "Early-Titled-Tuesday-Blitz-March-19-2024"]
[Site "Chess.com"]
[Date "2024.03.19"]
[Round "10"]
[White "KetiTsatsalashvili"]
[Black "IMchanged"]
[Result "0-1"]
[WhiteElo "2476"]
[BlackElo "2663"]
[TimeControl "180+1"]
[EndTime "9:55:50 PDT"]
[Termination "IMchanged won by checkmate"]

1. d4 {[%clk 0:03:00.9]} 1... d5 {[%clk 0:02:56.8]} 2. Nf3 {[%clk 0:03:00.8]}
2... c6 {[%clk 0:02:42.5]} 3. c4 {[%clk 0:02:51.7]} 3... Nf6 {[%clk 0:02:41]} 4.
Nc3 {[%clk 0:02:46.7]} 4... Bf5 {[%clk 0:02:35.8]} 5. cxd5 {[%clk 0:02:45]} 5...
cxd5 {[%clk 0:02:35.5]} 6. Qb3 {[%clk 0:02:45.5]} 6... Nc6 {[%clk 0:02:25.1]} 7.
Qxb7 {[%clk 0:02:38.4]} 7... Rc8 {[%clk 0:02:25.5]} 8. e3 {[%clk 0:02:23.3]}
8... Rc7 {[%clk 0:02:22.9]} 9. Qa6 {[%clk 0:02:17.8]} 9... Bc8 {[%clk
0:02:14.4]} 10. Qa4 {[%clk 0:02:13.6]} 10... e6 {[%clk 0:02:13.2]} 11. Ne5
{[%clk 0:01:35.1]} 11... Bd7 {[%clk 0:02:04.8]} 12. Nxd7 {[%clk 0:01:35.3]}
12... Qxd7 {[%clk 0:02:05.3]} 13. Bb5 {[%clk 0:01:35.5]} 13... Bd6 {[%clk
0:02:04.9]} 14. O-O {[%clk 0:01:32.4]} 14... O-O {[%clk 0:02:05.5]} 15. Bd2
{[%clk 0:01:27.1]} 15... Rfc8 {[%clk 0:02:05.9]} 16. Rac1 {[%clk 0:01:24.6]}
16... Qe7 {[%clk 0:02:06.1]} 17. h3 {[%clk 0:00:55]} 17... Nb8 {[%clk
0:01:58.5]} 18. Bd3 {[%clk 0:00:54.6]} 18... e5 {[%clk 0:01:55.7]} 19. Nb5
{[%clk 0:00:49.8]} 19... Rxc1 {[%clk 0:01:44.5]} 20. Rxc1 {[%clk 0:00:50.7]}
20... Rxc1+ {[%clk 0:01:42.8]} 21. Bxc1 {[%clk 0:00:51.6]} 21... e4 {[%clk
0:01:41.5]} 22. Be2 {[%clk 0:00:50.7]} 22... Nc6 {[%clk 0:01:41.3]} 23. Nxd6
{[%clk 0:00:46.7]} 23... Qxd6 {[%clk 0:01:42.2]} 24. Qa6 {[%clk 0:00:38.2]}
24... Qc7 {[%clk 0:01:39.8]} 25. Bd2 {[%clk 0:00:38.1]} 25... h5 {[%clk
0:01:36.6]} 26. Bb5 {[%clk 0:00:34.9]} 26... Ne7 {[%clk 0:01:36.2]} 27. Qa3
{[%clk 0:00:27.8]} 27... Nf5 {[%clk 0:01:33.4]} 28. Qc3 {[%clk 0:00:26.7]} 28...
Qb7 {[%clk 0:01:33.7]} 29. Be2 {[%clk 0:00:24.9]} 29... g5 {[%clk 0:01:31.6]}
30. b4 {[%clk 0:00:23.2]} 30... g4 {[%clk 0:01:30.8]} 31. hxg4 {[%clk
0:00:23.2]} 31... hxg4 {[%clk 0:01:31.7]} 32. g3 {[%clk 0:00:20.8]} 32... Qb8
{[%clk 0:01:32.3]} 33. Kg2 {[%clk 0:00:20.9]} 33... Nh5 {[%clk 0:01:29.7]} 34.
Be1 {[%clk 0:00:21.2]} 34... Nf6 {[%clk 0:01:28.7]} 35. b5 {[%clk 0:00:20.8]}
35... Kg7 {[%clk 0:01:29.1]} 36. a4 {[%clk 0:00:20.9]} 36... Qh8 {[%clk
0:01:29.3]} 37. Bf1 {[%clk 0:00:19.5]} 37... Qh6 {[%clk 0:00:54.5]} 38. Kg1
{[%clk 0:00:18.7]} 38... Nh5 {[%clk 0:00:53.8]} 39. Bg2 {[%clk 0:00:19.1]} 39...
Qb6 {[%clk 0:00:51.5]} 40. Qc6 {[%clk 0:00:18.6]} 40... Qd8 {[%clk 0:00:50.1]}
41. a5 {[%clk 0:00:18.3]} 41... Ne7 {[%clk 0:00:50]} 42. Qc5 {[%clk 0:00:18.2]}
42... Nf6 {[%clk 0:00:50.6]} 43. b6 {[%clk 0:00:18.2]} 43... axb6 {[%clk
0:00:51.5]} 44. axb6 {[%clk 0:00:18.7]} 44... Nc8 {[%clk 0:00:50.8]} 45. Qc7
{[%clk 0:00:19.2]} 45... Qxc7 {[%clk 0:00:48.9]} 46. bxc7 {[%clk 0:00:20.1]}
46... Ne8 {[%clk 0:00:49.2]} 47. Ba5 {[%clk 0:00:19.2]} 47... Kf6 {[%clk
0:00:49.4]} 48. Bf1 {[%clk 0:00:19.5]} 48... Ke6 {[%clk 0:00:50.1]} 49. Ba6
{[%clk 0:00:20.1]} 49... Ned6 {[%clk 0:00:50.5]} 50. Bxc8+ {[%clk 0:00:19.9]}
50... Nxc8 {[%clk 0:00:51.4]} 51. Kf1 {[%clk 0:00:19.4]} 51... Kd7 {[%clk
0:00:50.9]} 52. Ke2 {[%clk 0:00:19.7]} 52... Na7 {[%clk 0:00:50.2]} 53. Kd2
{[%clk 0:00:19.7]} 53... Nc6 {[%clk 0:00:50.4]} 54. Bb6 {[%clk 0:00:19.1]} 54...
Nb4 {[%clk 0:00:50.3]} 55. Kc3 {[%clk 0:00:19.3]} 55... Nd3 {[%clk 0:00:50.3]}
56. Kb3 {[%clk 0:00:18.8]} 56... Nxf2 {[%clk 0:00:48.8]} 57. Kb4 {[%clk
0:00:19.3]} 57... Kc8 {[%clk 0:00:46.6]} 58. Kc5 {[%clk 0:00:19.7]} 58... f5
{[%clk 0:00:45.6]} 59. Kxd5 {[%clk 0:00:20.2]} 59... Nh1 {[%clk 0:00:45.5]} 60.
Ke5 {[%clk 0:00:20.4]} 60... Nxg3 {[%clk 0:00:46.2]} 61. Kf4 {[%clk 0:00:20.8]}
61... Ne2+ {[%clk 0:00:45.9]} 62. Ke5 {[%clk 0:00:16.2]} 62... g3 {[%clk
0:00:46.3]} 63. d5 {[%clk 0:00:16.8]} 63... g2 {[%clk 0:00:46.2]} 64. d6 {[%clk
0:00:16.8]} 64... g1=Q {[%clk 0:00:46.2]} 65. Kxf5 {[%clk 0:00:15.9]} 65... Qg8
{[%clk 0:00:45.9]} 66. Ke5 {[%clk 0:00:16]} 66... Qe8+ {[%clk 0:00:45.8]} 67.
Kd5 {[%clk 0:00:16.1]} 67... Nc3+ {[%clk 0:00:45.7]} 68. Kc4 {[%clk 0:00:16.1]}
68... Na4 {[%clk 0:00:45.9]} 69. Bd4 {[%clk 0:00:16.4]} 69... Kd7 {[%clk
0:00:46]} 70. Kd5 {[%clk 0:00:16.1]} 70... Qe6# {[%clk 0:00:44.1]} 0-1

[Event "Early-Titled-Tuesday-Blitz-March-19-2024"]
[Site "Chess.com"]
[Date "2024.03.19"]
[Round "10"]
[White "willcab71"]
[Black "madmax011"]
[Result "0-1"]
[WhiteElo "2136"]
[BlackElo "2338"]
[TimeControl "180+1"]
[EndTime "9:55:50 PDT"]
[Termination "madmax011 won by checkmate"]

1. d4 {[%clk 0:03:00.8]} 1... Nf6 {[%clk 0:02:59.8]} 2. c4 {[%clk 0:03:00.4]}
2... g6 {[%clk 0:03:00]} 3. Nc3 {[%clk 0:03:00.6]} 3... d5 {[%clk 0:03:00.3]} 4.
h3 {[%clk 0:02:53.4]} 4... Bg7 {[%clk 0:03:00.1]} 5. cxd5 {[%clk 0:02:46]} 5...
Nxd5 {[%clk 0:03:00.1]} 6. e4 {[%clk 0:02:46.2]} 6... Nxc3 {[%clk 0:03:00.4]} 7.
bxc3 {[%clk 0:02:47.1]} 7... O-O {[%clk 0:03:00.6]} 8. Nf3 {[%clk 0:02:45.4]}
8... c5 {[%clk 0:03:00.9]} 9. Bc4 {[%clk 0:02:40.3]} 9... Nc6 {[%clk 0:02:58.8]}
10. Be3 {[%clk 0:02:38.4]} 10... Qa5 {[%clk 0:02:55.6]} 11. Qd2 {[%clk 0:02:20]}
11... cxd4 {[%clk 0:02:54.2]} 12. cxd4 {[%clk 0:02:19.5]} 12... Qxd2+ {[%clk
0:02:53.8]} 13. Kxd2 {[%clk 0:02:16.1]} 13... Rd8 {[%clk 0:02:52.6]} 14. Bd5
{[%clk 0:02:01.8]} 14... Nxd4 {[%clk 0:02:42.6]} 15. Bxd4 {[%clk 0:01:56.6]}
15... e6 {[%clk 0:02:28.3]} 16. Bxg7 {[%clk 0:01:46.1]} 16... Kxg7 {[%clk
0:02:25.4]} 17. Rhd1 {[%clk 0:01:42.6]} 17... exd5 {[%clk 0:02:25.3]} 18. Ke3
{[%clk 0:01:36.6]} 18... Be6 {[%clk 0:02:20.5]} 19. e5 {[%clk 0:01:29.3]} 19...
Rac8 {[%clk 0:02:16.7]} 20. Rac1 {[%clk 0:01:28.6]} 20... Kf8 {[%clk 0:02:06.5]}
21. Nd4 {[%clk 0:01:28.4]} 21... Ke7 {[%clk 0:02:02.7]} 22. f4 {[%clk
0:01:26.6]} 22... f6 {[%clk 0:01:51.2]} 23. exf6+ {[%clk 0:01:13.4]} 23... Kxf6
{[%clk 0:01:50.6]} 24. g4 {[%clk 0:01:13.7]} 24... Re8 {[%clk 0:01:20.9]} 25.
Kf3 {[%clk 0:00:57.4]} 25... Bd7 {[%clk 0:01:15.8]} 26. g5+ {[%clk 0:00:38.9]}
26... Kf7 {[%clk 0:01:13.5]} 27. Kg3 {[%clk 0:00:39.2]} 27... Bc6 {[%clk
0:01:05.9]} 28. Nf3 {[%clk 0:00:37.6]} 28... Ke6 {[%clk 0:00:59.7]} 29. Ne5
{[%clk 0:00:37]} 29... Kf5 {[%clk 0:00:58.2]} 30. Rb1 {[%clk 0:00:34]} 30... Rc7
{[%clk 0:00:51]} 31. Rd4 {[%clk 0:00:32.9]} 31... Rd8 {[%clk 0:00:49.2]} 32. a4
{[%clk 0:00:27.3]} 32... b6 {[%clk 0:00:45]} 33. Re1 {[%clk 0:00:26.9]} 33...
Re8 {[%clk 0:00:19.1]} 34. Rc1 {[%clk 0:00:25.4]} 34... Rec8 {[%clk 0:00:19.4]}
35. Re1 {[%clk 0:00:19.3]} 35... Re7 {[%clk 0:00:19.3]} 36. Rc1 {[%clk
0:00:18.1]} 36... Bb7 {[%clk 0:00:19.2]} 37. Rxc8 {[%clk 0:00:18]} 37... Bxc8
{[%clk 0:00:19.9]} 38. Rxd5 {[%clk 0:00:18.5]} 38... Ke4 {[%clk 0:00:20.4]} 39.
Rd2 {[%clk 0:00:17]} 39... Bf5 {[%clk 0:00:16.9]} 40. Nf3 {[%clk 0:00:15.7]}
40... Rc7 {[%clk 0:00:16.2]} 41. Rd4+ {[%clk 0:00:13.2]} 41... Ke3 {[%clk
0:00:15.9]} 42. Rb4 {[%clk 0:00:13.6]} 42... Rc3 {[%clk 0:00:14.8]} 43. Ne5
{[%clk 0:00:12.4]} 43... Ke2+ {[%clk 0:00:14.2]} 44. Kg2 {[%clk 0:00:12]} 44...
Bxh3+ {[%clk 0:00:14.1]} 45. Kh2 {[%clk 0:00:12.1]} 45... Bf5 {[%clk 0:00:14.1]}
46. Rd4 {[%clk 0:00:08.7]} 46... Kf2 {[%clk 0:00:13.6]} 47. Rb4 {[%clk
0:00:07.3]} 47... Rh3# {[%clk 0:00:13.2]} 0-1